[Event "FRA-ch Accession"]
[Site "Agen"]
[Date "2016.08.19"]
[Round "7"]
[White "Chabanon, Jean Luc"]
[Black "Lagarde, Maxime"]
[Result "1-0"]
[ECO "A85"]
[WhiteElo "2458"]
[BlackElo "2572"]
[Annotator "Meulders,R"]
[PlyCount "73"]
[EventDate "2016.08.13"]
[EventType "swiss"]
[EventRounds "9"]
[EventCountry "FRA"]
[SourceTitle "EXT 2017"]
[Source "ChessBase"]
[SourceDate "2016.10.25"]
[SourceVersion "1"]
[SourceVersionDate "2016.10.25"]
[SourceQuality "1"]
[TimeControl "40/5400+30:1800+30"]

1. d4 {[%emt 0:00:30]} f5 {[%emt 0:02:30]} 2. c4 {[%emt 0:00:00]} Nf6 {[%emt 0:
00:30]} 3. Nc3 {[%emt 0:00:00]} d6 {[%emt 0:00:00]} 4. Bg5 {[%emt 0:00:30]}
Nbd7 {[%emt 0:00:00]} 5. Qc2 {[%emt 0:00:30]} g6 {[%emt 0:01:30]} 6. h4 $1 {
[%emt 0:02:30]} h6 {[%emt 0:00:30]} (6... Bg7 7. O-O-O c6 8. Nh3 Nf8 9. e3 Qa5
10. Kb1 Ne6 11. Be2 Bd7 12. Bxf6 Bxf6 13. g4 O-O-O 14. gxf5 gxf5 15. Bd3 Kb8
16. Ne2 Bxh4 17. Bxf5 Bf6 18. e4 c5 19. d5 Nc7 20. Bxd7 Rxd7 21. f4 Rhd8 22.
Nf2 b5 23. Ng4 Bh8 24. Rxh7 Qb4 25. Ne3 a6 26. a3 Qa5 27. Nf5 Re8 28. e5 bxc4
29. Rdh1 Nb5 30. a4 {1-0 (30) Nakamura,H (2787)-Anton Guijarro,D (2639)
Gibraltar 2016}) 7. Bd2 {[%emt 0:05:30]} e5 {[%emt 0:06:30]} 8. e3 {[%emt 0:00:
00]} Bg7 {[%emt 0:07:30]} (8... h5 $2 {Ipatov,A (2630)-Gallagher,J (2504)
EU-chT (Men) 19th 2013 (5.12) 1-0}) 9. h5 {[%emt 0:17:00]} Nf8 $146 {[%emt 0:
01:30]} (9... Nxh5 10. g4 Nhf6 11. gxf5 g5 12. O-O-O c6 13. dxe5 Nxe5 14. f4
gxf4 15. e4 f3 16. Bf4 Nfg4 17. Bh3 Qh4 18. Bxg4 Qxg4 19. Nh3 Qg2 20. Nf2 Bf6
21. Rhg1 {1-0 (21) Stocek,J (2529)-Wall,G (2323) Bunratty 2014}) (9... g5 10.
Qxf5 O-O 11. O-O-O exd4 12. exd4 c5 13. Be3 Ne5 14. Qc2 Neg4 15. dxc5 Nxe3 16.
fxe3 Ng4 17. Rh3 Qe8 $13 {with more than enough compensation for Black.}) 10.
hxg6 {[%emt 0:00:30]} Nxg6 {[%emt 0:00:00]} 11. O-O-O {[%emt 0:01:30]} c6 {
[%emt 0:11:00]} 12. dxe5 {[%emt 0:02:30]} dxe5 {[%emt 0:10:30]} 13. e4 {
[%emt 0:01:30]} f4 {[%emt 0:02:30]} 14. Bxf4 {[%emt 0:02:30]} Qe7 {[%emt 0:01:
30]} 15. Bd2 {[%emt 0:02:30]} Be6 {[%emt 0:01:30]} 16. Nge2 {[%emt 0:05:30]}
Ng4 {[%emt 0:02:30]} 17. Be1 {[%emt 0:01:30]} Qg5+ {[%emt 0:07:30]} 18. Kb1 {
[%emt 0:00:30]} O-O {[%emt 0:08:30]} 19. Ng3 {[%emt 0:01:30]} Nf4 {[%emt 0:00:
30]} 20. Rd6 {[%emt 0:13:30]} Rf7 {[%emt 0:09:30]} 21. c5 {[%emt 0:04:30]} Kh8
{[%emt 0:10:38]} 22. Nh5 {[%emt 0:18:09]} Nxh5 {[%emt 0:06:29]} 23. Rxe6 {
[%emt 0:00:08]} Nf4 {[%emt 0:02:20]} 24. Rd6 {[%emt 0:01:08]} Bf8 {[%emt 0:00:
25]} 25. g3 {[%emt 0:06:31]} Bxd6 {[%emt 0:00:21]} 26. gxf4 {[%emt 0:00:09]}
Rxf4 {[%emt 0:01:31]} 27. cxd6 {[%emt 0:00:10]} Qf6 {[%emt 0:00:08]} 28. Ne2 {
[%emt 0:06:12]} Nxf2 {[%emt 0:02:11]} 29. Rxh6+ {[%emt 0:03:22]} Qxh6 {[%emt 0:
00:06]} 30. Nxf4 {[%emt 0:00:00]} Qxf4 {[%emt 0:01:56]} 31. Qxf2 {[%emt 0:00:
57]} Qxe4+ {[%emt 0:00:41]} 32. Kc1 {[%emt 0:00:10]} Kg7 {[%emt 0:01:35]} 33.
Qg3+ {[%emt 0:01:09]} Kf7 {[%emt 0:01:14]} 34. Bd3 {[%emt 0:00:17]} Qf4+ {
[%emt 0:00:30]} 35. Qxf4+ {[%emt 0:00:05]} exf4 {[%emt 0:00:00]} 36. Bf5 {
[%emt 0:01:25]} f3 {[%emt 0:00:46]} 37. Bh4 {[%emt 0:02:24]} 1-0

[Event "Sautron op 14th"]
[Site "Sautron"]
[Date "2014.10.25"]
[Round "3"]
[White "Loiseau, Quentin"]
[Black "Neelotpal, Das"]
[Result "1/2-1/2"]
[ECO "A85"]
[WhiteElo "2354"]
[BlackElo "2424"]
[Annotator "RR"]
[PlyCount "81"]
[EventDate "2014.10.26"]
[EventType "swiss"]
[EventRounds "9"]
[EventCountry "FRA"]
[SourceTitle "EXT 2015"]
[Source "ChessBase"]
[SourceDate "2014.11.20"]
[SourceVersion "1"]
[SourceVersionDate "2014.11.20"]
[SourceQuality "1"]
[TimeControl "40/5400+30:1800+30"]
[WhiteClock "0:31:05"]
[BlackClock "0:30:43"]

1. d4 {[%emt 0:03:42]} f5 {[%emt 0:00:00]} 2. c4 {[%emt 0:00:34]} Nf6 {[%emt 0:
00:01]} 3. Nc3 {[%emt 0:00:35]} d6 {[%emt 0:00:04]} 4. Bg5 {[%emt 0:04:15]}
Nbd7 {[%emt 0:00:09]} 5. e4 $5 {[%emt 0:08:12] Une ligne secondaire mais il ne
s'agissait probablement pas d'une préparation puisque le français a
réfléchi plus de 8 mns sur ce coup.} (5. Qc2 g6 6. e3 Bg7 7. h4 c6 8. Nh3 Qa5
9. Nf4 Nf8 10. Bxf6 Bxf6 11. d5 e5 12. dxe6 Nxe6 13. Nfe2 Qb4 14. O-O-O Qxc4
15. Rxd6 Qc5 16. Rd2 Bd7 17. g3 O-O-O 18. Bg2 Be8 19. Rxd8+ Bxd8 20. Rd1 Bf6
21. Qd2 Rf8 22. Kb1 Rf7 23. Nd4 Qd6 24. Qc2 Nxd4 25. exd4 Kb8 26. d5 c5 27. Ne2
Be5 28. Nc1 Re7 29. Nb3 Ba4 30. Re1 Bd4 31. Rxe7 Qxe7 32. Qd2 Bxb3 33. axb3 a6
34. b4 Ka7 {Dreev,A (2667)-Bologan,V (2661) Dubai 2014 1/2-1/2}) (5. e3 g6)
5... fxe4 {[%emt 0:02:57]} 6. Nge2 $146 {[%emt 0:00:34]} (6. f3 e5 7. dxe5 dxe5
8. Nxe4 Bb4+ 9. Nd2 O-O 10. a3 Bc5 11. Qc2 h6 12. Bh4 Be3 13. Rd1 Qe8 14. Bd3
Nc5 15. Bg6 Qc6 16. Ne2 Ne6 17. Ne4 Nd4 18. Nxd4 exd4 19. Nxf6+ gxf6 20. Be4
Qe8 21. Bf2 f5 22. Bd3 Bxf2+ 23. Kxf2 Qe3+ 24. Kf1 Re8 25. Qe2 Qxe2+ 26. Bxe2
c5 27. Kf2 Bd7 28. Rhe1 Re3 29. Bd3 Rae8 30. Rxe3 Rxe3 31. f4 Kf7 32. Bc2 Be6
33. Re1 Rxe1 34. Kxe1 Kf6 35. Bd3 Bd7 {Golovlev,N (2336)-Firman,N (2492)
Alushta 2008 1/2-1/2}) 6... e5 {[%emt 0:18:32]} 7. d5 {[%emt 0:06:26]} (7. Ng3
Be7 8. Be2 O-O 9. O-O exd4 10. Qxd4) 7... Be7 {[%emt 0:01:47]} (7... a5 {
[%cal Gd7c5]}) 8. Be3 {[%emt 0:08:58]} Ng4 {[%emt 0:09:58] L'ouverture des
Blancs ne fait pas très bonne impression} 9. Nxe4 {[%emt 0:04:33]} O-O $32 {
[%emt 0:10:37][%csl Re1,Re3,Rf2]} 10. N2g3 {[%emt 0:07:10]} Ndf6 {[%emt 0:07:
03]} (10... Nxe3 11. fxe3 a5 {[%cal Gd7c5]} 12. Be2) 11. Qd2 {[%emt 0:03:01]}
Nxe4 {[%emt 0:03:18]} 12. Nxe4 {[%emt 0:00:06]} Bf5 {[%emt 0:00:04]} 13. Bd3 {
[%emt 0:01:40]} Qe8 {[%emt 0:13:15]} 14. h4 {[%emt 0:17:07]} c6 {[%emt 0:02:23]
} 15. Nc3 {[%emt 0:09:17]} e4 $1 {[%emt 0:13:35]} 16. Bxe4 {[%emt 0:12:01]}
Bxe4 {[%emt 0:00:05]} 17. Nxe4 {[%emt 0:00:03]} Qg6 {[%emt 0:04:54]} 18. Nc3 {
[%emt 0:06:12]} Nxe3 {[%emt 0:02:45]} 19. Qxe3 {[%emt 0:00:32]} Qxg2 {[%emt 0:
00:52]} 20. O-O-O $13 {[%emt 0:00:12]} Rf7 {[%emt 0:00:58]} 21. Qe6 {[%emt 0:
03:01]} Qg6 {[%emt 0:01:54]} 22. Ne4 {[%emt 0:01:18]} cxd5 {[%emt 0:02:06]} 23.
Qxd5 {[%emt 0:01:11]} Rc8 {[%emt 0:00:37]} 24. b3 {[%emt 0:00:39]} b5 $36 {
[%emt 0:01:00]} 25. Rhg1 {[%emt 0:00:37]} Qf5 {[%emt 0:00:43]} 26. Qxf5 {
[%emt 0:00:32]} Rxf5 {[%emt 0:00:10]} 27. Nxd6 {[%emt 0:00:30]} Bxd6 {[%emt 0:
00:18]} 28. Rxd6 {[%emt 0:00:15]} bxc4 {[%emt 0:00:14]} 29. bxc4 {[%emt 0:00:
37]} (29. b4 Rxf2 30. Rd7 Rf7 31. Rxf7 Kxf7 32. Kc2 $11) 29... Rxc4+ {[%emt 0:
00:30]} 30. Kd2 {[%emt 0:00:25]} Rxh4 {[%emt 0:02:54]} 31. Rd8+ {[%emt 0:00:40]
} Rf8 {[%emt 0:00:17]} 32. Rd7 {[%emt 0:00:01]} Rxf2+ {[%emt 0:00:29]} 33. Ke3
{[%emt 0:00:01]} Rf7 {[%emt 0:00:05]} 34. Rd8+ {[%emt 0:00:03]} Rf8 {[%emt 0:
00:03]} 35. Rd7 {[%emt 0:00:05]} Re8+ {[%emt 0:01:41]} 36. Kd3 {[%emt 0:00:55]}
g6 $17 {[%emt 0:00:22][%csl Gg6]} 37. Rb1 {[%emt 0:00:56][%cal Gb1b7]} Rh3+ {
[%emt 0:00:33]} 38. Kd4 {[%emt 0:01:16]} Rh4+ {[%emt 0:00:41]} 39. Kd3 {
[%emt 0:00:42]} Rh3+ {[%emt 0:00:40]} 40. Kd4 {[%emt 0:00:00]} Rh4+ {[%emt 0:
00:00]} 41. Kd3 1/2-1/2